bitfinex/quotes_ETHUSD_20250815
["timestamp","ask_amount","ask_price","bid_price","bid_amount"]
[1755287277785,48.169377,4402.9,4402.8,1e-08]
[1755287277985,48.169377,4402.9,4401.9,0.001]
[1755287277986,35.82128191,4402.8,4402.3,1e-08]
[1755287278197,2.82169468,4402.0,4401.9,0.001]
[1755287278367,39.85058523,4402.0,4401.9,0.001]
[1755287278692,40.79028523,4402.0,4401.9,0.001]
[1755287278895,41.2840469,4402.0,4401.9,0.001]
[1755287279460,41.3751239,4402.0,4401.9,0.001]
[1755287280000,41.54512608,4402.0,4401.9,0.001]
[1755287280569,37.52812608,4402.0,4401.9,0.001]
[1755287280802,41.09364908,4402.0,4401.9,0.001]
[1755287281665,41.56664908,4402.0,4401.9,0.001]
[1755287282883,2.27179968,4401.8,4401.3,0.001]
[1755287283106,2.38560436,4401.4,4401.3,0.001]
[1755287283277,38.92960436,4401.4,4401.3,0.001]
[1755287283477,39.88119491,4401.4,4401.3,0.001]
[1755287283788,2.8221076,4401.2,4400.5,0.001]
[1755287283963,2.8221076,4401.2,4401.1,1e-08]
[1755287283964,39.3661076,4401.2,4401.1,1e-08]
[1755287284166,5.82241739,4400.6,4400.5,0.001]
[1755287284385,39.96403254,4400.6,4400.5,0.001]
[1755287284610,42.63519658,4400.6,4400.5,0.001]
[1755287286510,42.61719658,4400.6,4400.5,0.001]
[1755287286817,43.71640977,4400.6,4400.5,0.001]
[1755287287309,41.50589658,4400.6,4400.5,0.001]
[1755287287511,42.50459658,4400.6,4400.5,0.001]
[1755287287712,43.86959658,4400.6,4400.5,0.001]
[1755287288020,44.96880977,4400.6,4400.5,0.001]
[1755287288509,43.86959658,4400.6,4400.5,0.001]
[1755287289415,44.68211617,4400.6,4400.5,0.001]
[1755287290437,43.86959658,4400.6,4400.5,0.001]
[1755287290638,4.18767562,4400.1,4400.0,137.00801246]
[1755287290841,40.73167562,4400.1,4400.0,137.00801246]
[1755287291006,41.21569077,4400.1,4400.0,137.00801246]
[1755287292467,42.02299225,4400.1,4400.0,137.00801246]
[1755287293231,41.21569077,4400.1,4400.0,137.00801246]
[1755287293524,41.49778286,4400.1,4400.0,137.00801246]
[1755287293830,37.02801515,4400.1,4400.0,137.91391246]
[1755287294163,3.48401515,4400.1,4400.0,137.91391246]
[1755287294364,7.02901515,4400.1,4400.0,137.91391246]
[1755287294713,9.30169077,4400.1,4400.0,137.00801246]
[1755287294919,41.3481164,4400.1,4400.0,137.00801246]
[1755287295226,40.53993729,4400.1,4400.0,137.00801246]
[1755287295432,37.02901515,4400.1,4400.0,137.91391246]
[1755287296453,38.24779454,4400.1,4400.0,137.91391246]
[1755287296819,40.52047016,4400.1,4400.0,137.91391246]
[1755287297456,39.41529077,4400.1,4400.0,137.91391246]
[1755287297618,37.14261515,4400.1,4400.0,137.91391246]
[1755287297819,39.41529077,4400.1,4400.0,137.91391246]
[1755287298045,39.41529077,4400.1,4400.0,137.48101246]
[1755287298246,39.41529077,4400.1,4400.0,135.77941149]
[1755287298424,37.14261515,4400.1,4400.0,135.77941149]
[1755287298750,39.41529077,4400.1,4400.0,135.77941149]
[1755287298949,3.59761515,4400.1,4400.0,136.68531149]
[1755287299125,5.35989373,4400.1,4400.0,136.68531149]
[1755287299657,4.14261515,4400.1,4400.0,136.68531149]
[1755287301732,4.14261515,4400.1,4400.0,134.40961464]
[1755287302232,6.41529077,4400.1,4400.0,133.93661464]
[1755287302434,4.14261515,4400.1,4400.0,133.93661464]
[1755287302961,6.41529077,4400.1,4400.0,133.93661464]
[1755287304731,6.41729077,4400.1,4400.0,133.93661464]
[1755287305171,11.04489551,4400.1,4400.0,133.93661464]
[1755287305475,10.74903775,4400.1,4400.0,131.47938758]
[1755287306572,11.31289089,4400.1,4400.0,131.47938758]
[1755287307365,10.86419089,4400.1,4400.0,131.47938758]
[1755287307570,9.53244391,4400.1,4400.0,131.47938758]
[1755287309171,0.59961515,4400.1,4400.0,131.47938758]
[1755287309341,2.23297332,4400.1,4400.0,132.38528758]
[1755287309541,3.64361515,4400.1,4400.0,132.38528758]
[1755287309867,4.86845865,4400.1,4400.0,134.58975162]
[1755287310372,4.86845865,4400.1,4400.0,136.97607889]
[1755287310373,4.36248079,4400.1,4400.0,136.97607889]
[1755287310538,3.546,4400.1,4400.0,136.97607889]
[1755287311064,0.002,4400.1,4400.0,136.97607889]
[1755287311375,4.1581944,4400.1,4400.0,136.97607889]
[1755287311538,3.546,4400.1,4400.0,134.70335162]
[1755287311742,4.1581944,4400.1,4400.0,136.97607889]
[1755287312445,0.002,4400.1,4400.0,136.97607889]
[1755287312649,3.546,4400.1,4400.0,136.97607889]
[1755287313451,0.6121944,4400.5,4400.4,2.27252067]
[1755287313678,0.6121944,4401.1,4401.0,2.27221086]
[1755287313971,0.6121944,4401.1,4401.0,3.29171086]
[1755287313972,3.544,4401.1,4401.0,3.29171086]
[1755287314743,0.7257944,4401.8,4401.4,2.27200412]
[1755287314963,3.543,4401.7,4401.5,0.9059]
[1755287315141,0.1136,4401.8,4401.7,2.27184951]
[1755287315480,3.543,4401.8,4401.7,0.9059]
[1755287315773,0.6121944,4402.1,4402.0,2.27169468]
[1755287315978,0.6121944,4402.3,4402.2,2.27159147]
[1755287316158,3.543,4402.3,4402.1,3.17753311]
[1755287316475,3.543,4402.3,4402.2,3.17509147]
[1755287316678,0.02,4402.4,4402.3,2.27153987]
[1755287316862,3.563,4402.4,4402.3,3.17503987]
[1755287317062,3.563,4402.4,4402.3,3.73106823]
[1755287317358,3.563,4402.4,4402.3,3.17503987]
[1755287317536,3.563,4402.4,4402.3,0.9035]
[1755287317939,3.563,4402.4,4402.0,2.27168139]
[1755287318176,3.563,4402.4,4402.1,0.4363]
[1755287318336,3.563,4402.4,4402.1,0.9035]
[1755287318541,3.563,4402.4,4402.2,0.4363]
[1755287319277,3.563,4402.4,4402.3,0.9035]
[1755287319580,3.563,4402.4,4402.3,0.4363]
[1755287319884,3.563,4402.4,4402.1,2.27162159]
[1755287320046,3.563,4402.4,4402.1,0.4363]
[1755287320382,3.563,4402.4,4401.7,2.38540163]
[1755287320565,3.563,4402.4,4401.7,0.1136]
[1755287320748,0.02,4402.4,4401.7,0.1136]
[1755287320943,3.542,4402.3,4401.9,2.27174629]
[1755287321144,3.542,4402.3,4402.0,0.4363]
[1755287321344,3.6556,4402.3,4401.7,2.8526093]
[1755287321549,3.6556,4402.3,4401.7,3.2889093]
[1755287321875,3.6556,4402.3,4401.8,2.27179053]
[1755287322197,4.5628,4402.3,4401.8,2.27179712]
[1755287322378,3.6556,4402.3,4401.7,2.38543722]
[1755287322581,3.6556,4402.3,4401.8,0.4363]
[1755287323163,4.02336,4402.3,4401.7,0.1136]
[1755287323362,2.38534703,4401.9,4401.3,0.1136]
[1755287323596,5.81384261,4401.8,4401.3,0.1136]
[1755287323750,3.542,4401.8,4401.3,0.1136]
[1755287323949,3.542,4401.8,4401.4,0.4363]
[1755287324185,3.542,4401.8,4401.5,0.4363]
[1755287329145,3.542,4401.8,4401.5,2.70825205]
[1755287329375,3.542,4401.8,4401.5,0.4363]
[1755287330250,3.542,4401.8,4401.3,2.85284511]
[1755287330251,3.542,4401.8,4401.6,0.4363]
[1755287330850,3.542,4401.8,4401.3,3.28914511]
[1755287331052,3.542,4401.8,4401.4,0.4363]
[1755287332487,3.542,4401.8,4401.5,0.9035]
[1755287332785,0.1136,4401.9,4401.8,2.2717979]
[1755287332950,3.6546,4401.9,4401.8,2.2717979]
[1755287333150,3.541,4401.9,4401.8,3.1752979]
[1755287333351,3.541,4401.9,4401.8,3.2888979]
[1755287333562,3.541,4401.9,4401.8,3.87786333]
[1755287333766,3.541,4402.1,4401.8,1.60606543]
[1755287334001,3.541,4402.1,4402.0,2.27169468]
[1755287334206,3.54,4402.2,4402.0,0.9035]
[1755287334500,3.54,4402.2,4401.9,11.34449575]
[1755287334501,3.54,4402.2,4402.1,4.46173477]
[1755287334803,3.54,4402.2,4402.1,4.57533477]
[1755287335005,3.54,4402.2,4402.1,3.28874307]
[1755287335298,3.54,4402.2,4402.1,2.38524307]
[1755287335909,3.54,4402.2,4401.4,0.4363]
[1755287336071,3.54,4402.2,4401.9,2.38532456]
[1755287336266,3.54,4402.2,4402.0,2.27168992]
[1755287336466,3.54,4402.2,4401.9,0.1136]
[1755287336706,3.54,4402.2,4401.9,2.385331]
[1755287336997,3.54,4402.2,4402.0,2.27165827]
[1755287337223,3.54,4402.2,4402.0,0.4363]
[1755287337396,0.022,4402.4,4402.1,0.4363]
[1755287337702,3.54,4402.3,4402.2,2.27159147]
[1755287337899,3.54,4402.3,4402.1,2.27163234]
[1755287338103,1e-08,4402.7,4402.2,23.69703997]
[1755287338303,1e-08,4402.7,4402.2,3.28869064]
[1755287338488,1e-08,4402.7,4402.6,2.27138509]
[1755287339082,1e-08,4402.7,4402.6,3.17488509]
[1755287339296,1e-08,4402.7,4402.6,4.13312243]
[1755287340216,1e-08,4402.7,4402.6,7.13312243]
[1755287340369,1e-08,4402.7,4402.6,7.68312243]
[1755287341010,1e-08,4402.7,4402.6,7.13312243]
[1755287342619,1e-08,4402.9,4402.8,2.27128191]
[1755287342919,1e-08,4402.9,4402.8,10.23743515]
[1755287343118,1e-08,4402.9,4402.8,11.11822234]
[1755287343328,1e-08,4402.9,4402.8,11.66822234]
[1755287344190,1e-08,4402.9,4402.8,11.66722234]
[1755287348629,1e-08,4402.9,4402.8,8.12922234]
[1755287348837,1e-08,4402.9,4402.8,10.65002234]
[1755287349524,1e-08,4402.9,4402.8,11.11442234]
[1755287350029,1e-08,4402.9,4402.8,10.65002234]
[1755287350215,1e-08,4402.9,4402.8,10.21372234]
[1755287350523,1e-08,4402.9,4402.8,10.67802234]
[1755287351324,1e-08,4402.9,4402.8,11.14242234]
[1755287351524,1e-08,4403.4,4403.3,2.271024]
[1755287351709,1e-08,4403.4,4403.3,9.94854599]
[1755287352027,1e-08,4403.4,4403.3,6.37583575]
[1755287354130,1e-08,4403.4,4403.3,2.83883575]
[1755287354329,1e-08,4403.4,4403.3,6.37583575]
[1755287354627,1e-08,4403.4,4403.3,2.83883575]
[1755287355029,1e-08,4403.4,4403.3,5.921624]
[1755287356329,1e-08,4403.4,4403.3,2.384624]
[1755287358611,0.91470001,4403.4,4403.3,2.384624]
[1755287358933,0.91470001,4403.4,4403.3,0.1136]
[1755287359142,0.91470001,4403.4,4403.3,2.384624]
[1755287359541,0.91470001,4403.4,4403.3,0.1136]
[1755287360040,0.91470001,4403.4,4402.8,2.27124197]
[1755287360248,0.9147,4403.3,4403.0,0.1136]
[1755287360607,1e-08,4403.4,4403.0,0.1136]
[1755287360608,0.9147,4403.2,4403.0,0.1136]
[1755287360807,0.9147,4403.1,4403.0,0.1136]
[1755287363506,0.9147,4403.1,4402.7,2.27131728]
[1755287363747,0.9147,4403.0,4402.7,0.1136]
[1755287364048,0.9147,4402.9,4402.7,2.38492787]
[1755287364779,0.9147,4402.8,4402.7,0.1136]
[1755287365741,0.9147,4402.8,4402.6,0.001]
[1755287365950,0.9147,4402.7,4402.6,0.001]
[1755287367646,3.18603349,4402.7,4402.6,0.001]
[1755287367854,3.61823684,4402.7,4402.6,0.001]
[1755287369133,6.61823684,4402.7,4402.6,0.001]
[1755287369345,7.10767409,4402.7,4402.6,0.001]
[1755287370517,37.10767409,4402.7,4402.6,0.001]
[1755287371054,37.65767409,4402.7,4402.6,0.001]
[1755287371451,37.8300687,4402.7,4402.6,0.001]
[1755287372172,38.4422631,4402.7,4402.6,0.001]
[1755287372471,37.8300687,4402.7,4402.6,0.001]
[1755287372681,7.8300687,4402.7,4402.6,1e-08]
[1755287372976,39.1950687,4402.7,4402.6,1e-08]
[1755287373342,40.12676596,4402.7,4402.6,1e-08]
[1755287373673,43.66276596,4402.7,4402.6,1e-08]
[1755287374239,42.84956148,4402.7,4402.6,1e-08]
[1755287375669,39.31356148,4402.7,4402.6,1e-08]
[1755287375880,42.0937392,4402.7,4402.6,1e-08]
[1755287376366,41.48456148,4402.7,4402.6,1e-08]
[1755287376565,43.03283944,4402.7,4402.6,1e-08]
[1755287377659,43.64201716,4402.7,4402.6,1e-08]
[1755287378535,43.03283944,4402.7,4402.6,1e-08]
[1755287379484,44.39783944,4402.7,4402.6,1e-08]
[1755287379636,2.82159147,4402.2,4402.1,1e-08]
[1755287379835,46.47119147,4402.2,4402.1,1e-08]
[1755287380071,49.43884634,4402.2,4402.1,1e-08]
[1755287380476,45.02164634,4402.2,4402.1,1e-08]
[1755287380676,12.72267313,4402.2,4402.1,1e-08]
[1755287380846,44.09059455,4402.2,4402.1,1e-08]
[1755287381168,44.52699455,4402.2,4402.1,1e-08]
[1755287381540,44.52699455,4402.2,4401.8,1e-08]
[1755287381541,4.915,4402.1,4401.8,1e-08]
[1755287381740,7.79538971,4401.9,4401.8,1e-08]
[1755287381974,41.20946771,4401.9,4401.8,1e-08]
[1755287382173,0.55,4401.6,4401.1,1e-08]
[1755287382342,0.55,4401.3,4401.1,1e-08]
[1755287382541,44.8161076,4401.2,4401.1,1e-08]
[1755287382770,47.30221495,4401.2,4401.1,1e-08]
[1755287382972,49.93537899,4401.2,4401.1,1e-08]
[1755287384278,2.27241718,4400.7,4400.1,1e-08]
[1755287384483,2.27241718,4400.7,4400.0,131.47938758]
[1755287384484,35.82267562,4400.1,4400.0,122.60247994]
[1755287384785,35.82267562,4400.1,4400.0,121.08878291]
[1755287384786,40.72659704,4400.1,4400.0,121.08878291]
[1755287384978,42.26195513,4400.1,4400.0,121.08878291]
[1755287385162,42.49825145,4400.1,4400.0,121.08878291]
[1755287385570,12.49825145,4400.1,4400.0,121.08878291]
[1755287385946,42.49825145,4400.1,4400.0,121.08878291]
[1755287386780,41.61805145,4400.1,4400.0,121.08878291]
[1755287387295,42.66956572,4400.1,4400.0,121.08878291]
[1755287388451,41.78836572,4400.1,4400.0,121.08878291]
[1755287390484,42.39667402,4400.1,4400.0,121.08878291]
[1755287390787,42.84917402,4400.1,4400.0,121.08878291]
[1755287391387,42.78316572,4400.1,4400.0,121.08878291]
[1755287391557,41.90196572,4400.1,4400.0,121.08878291]
[1755287391957,42.50947832,4400.1,4400.0,121.08878291]
[1755287392171,42.50947832,4400.1,4400.0,121.98758291]
[1755287392172,8.1156694,4400.1,4400.0,121.98758291]
[1755287392365,8.1156694,4400.1,4400.0,121.52748291]
[1755287392567,11.1156694,4400.1,4400.0,121.52748291]
[1755287392787,11.1156694,4400.1,4400.0,121.98758291]
[1755287393268,11.1156694,4400.1,4400.0,121.52748291]
[1755287394383,10.94535513,4400.1,4400.0,121.98758291]
[1755287395594,5.13567951,4400.1,4400.0,121.98758291]
[1755287395906,1.64895809,4400.1,4400.0,124.19204695]
[1755287396062,10.45863371,4400.1,4400.0,121.52748291]
[1755287396261,40.94532299,4400.1,4400.0,121.08878291]
[1755287396700,41.49532299,4400.1,4400.0,121.08878291]
[1755287396986,42.37652299,4400.1,4400.0,121.08878291]
[1755287397188,44.58098703,4400.1,4400.0,121.08878291]
[1755287397666,45.94598703,4400.1,4400.0,117.79412318]
[1755287398281,45.94598703,4400.1,4400.0,116.56527798]
[1755287398993,1.365,4399.9,4399.6,0.001]
[1755287399290,6.75148224,4399.7,4399.6,0.001]
[1755287399491,37.78817152,4399.7,4399.6,0.001]
[1755287399662,39.93407731,4399.7,4399.6,0.001]
[1755287400259,39.05287731,4399.7,4399.6,0.001]
[1755287400520,45.13324135,4399.7,4399.6,0.001]
[1755287400662,45.56194135,4399.7,4399.6,0.001]
[1755287401196,45.56194135,4399.7,4399.5,0.001]
[1755287401197,7.1879339,4399.6,4399.5,0.001]
[1755287401373,8.55582318,4399.6,4399.5,0.001]
[1755287401572,40.99779317,4399.6,4399.5,0.001]
[1755287402400,41.74300806,4399.6,4399.5,0.001]
[1755287402562,43.10359317,4399.6,4399.5,0.001]
[1755287403474,43.65359317,4399.6,4399.5,0.001]
[1755287403670,36.46565927,4399.6,4399.5,0.001]
[1755287403876,38.77376745,4399.6,4399.5,0.4397]
[1755287404183,10.55406449,4399.6,4399.5,0.001]
[1755287404384,8.28113059,4399.6,4399.5,0.4397]
[1755287404899,8.28113059,4399.6,4399.5,0.8998]
[1755287405259,9.24307072,4399.6,4399.5,0.001]
[1755287405459,44.31220462,4399.6,4399.5,0.001]
[1755287406203,4.18814057,4399.2,4399.1,0.021]
[1755287406366,4.18814057,4399.2,4399.0,1e-08]
[1755287406367,57.19772288,4399.1,4399.0,1e-08]
[1755287406566,58.33053305,4399.1,4399.0,1e-08]
[1755287406762,59.23233305,4399.1,4399.0,1e-08]
[1755287406974,4.1886574,4398.2,4398.1,0.02]
[1755287407175,41.21234668,4398.2,4398.1,0.02]
[1755287407373,42.99327838,4398.2,4398.1,0.02]
[1755287407592,41.62827838,4398.2,4398.1,0.02]
[1755287407970,39.35462098,4398.2,4398.1,0.02]
[1755287408200,41.62827838,4398.2,4398.1,0.02]
[1755287408504,42.94452416,4398.2,4398.1,0.02]
[1755287409681,40.67086676,4398.2,4398.1,0.4796]
[1755287410101,42.94452416,4398.2,4398.1,0.02]
[1755287410513,43.05812416,4398.2,4398.1,0.02]
[1755287410825,2.27384119,4397.9,4397.6,0.4596]
[1755287411026,38.77247177,4397.8,4397.2,0.484]
[1755287411315,2.27402148,4397.5,4397.2,0.001]
[1755287411607,5.82412275,4397.3,4397.2,0.001]
[1755287411907,36.31081203,4397.3,4397.2,0.001]
[1755287412110,40.20543789,4397.3,4397.2,0.001]
[1755287412338,39.01216804,4397.3,4397.2,0.001]
[1755287412681,3.55,4397.1,4396.7,0.001]
[1755287412930,5.82438136,4396.8,4396.7,0.001]
[1755287413108,5.82438136,4396.8,4394.8,0.483]
[1755287413109,5.82469177,4396.2,4394.8,0.483]
[1755287413308,2.27556148,4394.6,4393.2,0.4596]
[1755287413623,0.8136905,4393.9,4393.7,0.4596]
[1755287413776,4.05868928,4393.8,4393.7,0.4596]
[1755287413980,3.572,4393.8,4393.7,0.4596]
[1755287414179,30.0,4393.7,4393.1,0.02]
[1755287414403,1.16039688,4393.4,4393.1,0.02]
[1755287414579,3.0,4393.2,4393.1,0.02]
[1755287414779,3.48668928,4393.2,4393.1,0.4796]
[1755287415429,3.48668928,4393.2,4393.1,0.02]
[1755287415932,3.48668928,4393.2,4393.1,0.4796]
[1755287416153,3.48668928,4393.2,4393.1,0.02]
[1755287416304,4.8605979,4393.2,4393.1,0.02]
[1755287416700,4.07768928,4393.2,4393.1,0.9626]
[1755287417011,3.591,4393.2,4393.1,0.9626]
[1755287417556,6.591,4393.2,4393.1,0.9626]
[1755287417702,6.591,4393.2,4393.1,0.02]
[1755287418058,40.80422011,4393.2,4393.1,0.02]
[1755287418203,42.10788415,4393.2,4393.1,0.02]
[1755287418615,40.44032042,4393.2,4393.1,0.02]
[1755287418821,42.71656552,4393.2,4393.1,0.02]
[1755287419039,42.11088415,4393.2,4393.1,0.02]
[1755287419732,10.43962261,4393.2,4393.1,0.02]
[1755287419903,3.48517501,4393.2,4393.1,0.02]
[1755287420105,6.594,4393.2,4393.1,0.9626]
[1755287420353,7.07917501,4393.2,4393.1,0.021]
[1755287420637,39.46650706,4393.2,4393.1,0.021]
[1755287420964,41.74275216,4393.2,4393.1,0.021]
[1755287421449,41.56059987,4393.2,4393.1,0.021]
[1755287421615,37.96459987,4393.2,4393.1,0.021]
[1755287421818,41.56059987,4393.2,4393.1,0.021]
[1755287422031,40.95655216,4393.2,4393.1,0.021]
[1755287422205,37.19477501,4393.2,4393.1,0.021]
[1755287422416,6.7096,4393.2,4393.1,0.9636]
[1755287422609,40.0188298,4393.2,4393.1,0.021]
[1755287423242,36.4228298,4393.2,4393.1,0.021]
[1755287423414,3.29272047,4393.7,4393.1,0.9636]
[1755287423415,1.01670968,4393.7,4393.1,0.9636]
[1755287423608,1.01670968,4393.7,4393.2,0.96536245]
[1755287423810,0.42260968,4393.7,4393.3,0.48236193]
[1755287424115,0.42260968,4393.7,4393.6,2.38963787]
[1755287424822,3.602,4394.1,4394.0,2.27583067]
[1755287425020,3.601,4394.2,4393.9,2.27588247]
[1755287425342,0.48280769,4396.1,4394.8,2.2754164]
[1755287425509,0.1136,4395.2,4394.0,0.1136]
[1755287425837,3.0,4395.0,4394.9,2.27536462]
[1755287426039,3.601,4395.0,4394.9,2.27536462]
[1755287426407,3.601,4395.0,4394.9,2.73044913]
[1755287426607,0.1136,4395.2,4394.9,2.73044913]
[1755287426803,3.6,4395.1,4395.0,2.27531285]
[1755287427004,6.6,4395.1,4395.0,2.27531285]
[1755287427220,0.1136,4395.6,4395.2,2.27520849]
[1755287427439,3.6,4395.5,4395.0,0.46643258]
[1755287427666,3.0,4395.4,4394.9,0.1136]
[1755287427822,3.4404,4395.4,4393.2,2.2762451]
[1755287428021,0.1136,4394.5,4394.0,2.27583067]
[1755287428226,3.601,4394.4,4394.1,2.27576996]
[1755287428431,0.1136,4394.5,4394.0,0.23894307]
[1755287428739,0.1136,4394.5,4393.9,0.1136]
[1755287428740,0.1136,4394.5,4394.4,2.27562352]
[1755287428933,3.6,4394.6,4394.5,2.27557173]
[1755287429238,3.6,4394.6,4393.2,2.2762451]
[1755287429442,3.6,4394.6,4394.1,2.38935324]
[1755287429612,3.6,4394.6,4394.1,0.1136]
[1755287429938,3.6,4394.5,4394.1,0.1136]
[1755287430347,3.6,4394.5,4394.2,2.27568308]
[1755287430518,0.1136,4394.8,4394.2,2.27572462]
[1755287430721,0.1136,4394.8,4394.7,2.27546817]
[1755287430955,0.48440272,4396.1,4395.4,2.27508506]
[1755287431175,5.468,4396.2,4394.3,0.55]
[1755287431310,3.601,4396.1,4396.0,2.27479526]
[1755287431620,5.468,4396.2,4396.0,2.27479526]
[1755287431812,3.602,4396.1,4396.0,2.27479526]
[1755287432012,5.468,4396.2,4394.9,0.55]
[1755287432213,3.602,4396.1,4395.2,2.27520931]
[1755287432453,3.602,4396.1,4396.0,2.27479526]
[1755287432657,1.01352599,4397.3,4395.3,2.27515755]
[1755287432818,3.601,4396.3,4395.0,0.55]
[1755287433022,3.601,4396.3,4394.7,2.27546817]
[1755287433256,3.601,4396.3,4394.8,0.52754682]
[1755287433420,3.601,4396.2,4395.5,2.27504181]
[1755287433627,3.601,4396.2,4394.0,5.27583067]
[1755287433628,3.0,4396.1,4394.2,2.27572709]
[1755287433848,3.0,4396.1,4395.1,2.27521067]
[1755287434050,3.0,4396.1,4395.0,2.27529354]
[1755287434267,3.0,4396.1,4394.9,2.27535721]
[1755287434464,3.0,4396.1,4395.0,2.27531285]
[1755287434676,3.0,4396.1,4394.4,0.22756753]
[1755287434855,3.0,4396.1,4394.0,0.55]
[1755287435057,0.17471934,4396.8,4394.1,0.02275778]
[1755287435256,3.0,4396.2,4394.5,0.55]
[1755287435435,0.4404,4396.1,4395.2,2.27519496]
[1755287435635,0.75048,4396.0,4395.2,2.27519841]
[1755287435944,30.9018,4395.9,4392.6,3.604]
[1755287436146,30.9018,4395.9,4394.8,2.27540909]
[1755287436147,3.0,4395.7,4394.8,2.27540909]
[1755287436356,3.48583441,4395.7,4394.8,2.27540909]
[1755287436548,0.79906344,4395.6,4394.8,2.27540909]
[1755287436744,0.79906344,4395.6,4394.5,2.27555582]
[1755287436745,0.79906344,4395.6,4394.7,2.27546817]
[1755287436948,3.603,4395.5,4395.0,2.27527972]
[1755287437160,0.002,4396.1,4393.1,0.021]
[1755287437345,0.4333,4395.4,4394.2,2.27570922]
[1755287437545,3.0,4395.2,4393.1,0.571]
[1755287437759,3.6164,4395.7,4394.7,2.27541825]
[1755287438073,4.61610162,4395.6,4394.7,2.27541825]
[1755287438367,4.61610162,4395.6,4393.2,2.2762451]
[1755287438368,3.0,4395.4,4391.9,5.77237658]
[1755287438547,3.0,4395.2,4393.2,0.02276245]
[1755287438746,3.0,4395.2,4394.6,2.27547969]
[1755287439063,3.602,4395.1,4394.7,2.27546595]
[1755287439270,3.602,4395.0,4393.7,0.55]
[1755287439643,0.48637519,4395.6,4393.7,0.55]
[1755287439844,3.6164,4395.7,4394.9,2.27533475]
[1755287439845,4.10277519,4395.7,4394.9,2.27533475]
[1755287440047,3.0,4395.4,4393.7,0.55]
[1755287440249,3.601,4395.3,4393.8,0.28260379]
[1755287440456,0.4333,4395.3,4394.6,2.27551478]
[1755287440656,3.601,4395.2,4394.6,2.27551478]
[1755287440868,3.48657647,4395.7,4394.9,2.27536426]
[1755287441042,0.1136,4395.4,4394.9,2.51426069]
[1755287441241,0.1136,4395.4,4395.0,2.275309]
[1755287441477,0.1136,4395.4,4395.1,2.27524815]
[1755287441682,5.466,4395.8,4394.8,0.1136]
[1755287441883,0.1136,4395.6,4395.2,2.27520931]
[1755287442184,3.6,4395.5,4395.3,2.27514104]
[1755287442900,3.6,4395.5,4395.1,2.27520976]
[1755287443097,4.0333,4395.5,4395.1,2.27520976]
[1755287443402,0.1136,4395.6,4395.0,2.27531006]
[1755287443697,3.598,4395.5,4395.2,2.27519463]
[1755287444054,3.598,4395.5,4395.1,2.27525474]
[1755287444255,3.598,4395.5,4395.2,2.27520445]
[1755287444563,1.0497,4395.4,4394.8,0.1136]
[1755287444780,1.0497,4395.4,4394.9,2.27532538]
[1755287445024,0.4333,4395.4,4395.0,2.27531037]
[1755287445152,1.0497,4395.3,4394.9,2.27536033]
[1755287445351,1.52583,4395.3,4392.6,2.27653285]
[1755287445657,0.1136,4394.9,4394.4,2.27560136]
[1755287445856,4.0283,4394.8,4394.4,2.27560136]
[1755287446085,0.4333,4394.7,4394.3,2.38926082]
[1755287446325,0.4333,4394.7,4394.4,2.27560278]
[1755287446487,0.4333,4394.7,4394.3,0.1136]
[1755287446688,0.4333,4394.6,4394.3,0.1136]
[1755287446852,1.0497,4394.6,4394.3,0.1136]
[1755287447051,0.6164,4394.6,4394.3,0.1136]
[1755287447282,0.6164,4394.6,4394.2,2.27572537]
[1755287447482,3.594,4394.5,4394.4,2.27562352]
[1755287447968,0.1136,4394.9,4394.6,2.27549598]
[1755287448278,0.1136,4394.9,4394.3,2.38926974]
[1755287448483,3.593,4394.8,4394.3,2.38926974]
[1755287448662,4.6427,4394.7,4394.3,0.1136]
[1755287448869,1.0497,4394.6,4394.1,0.1136]
[1755287449071,0.1136,4394.3,4393.1,0.1346]
[1755287449313,0.1136,4393.6,4393.1,0.021]
[1755287449625,3.6,4393.5,4393.1,0.021]
[1755287449812,3.6,4393.5,4393.2,2.27623821]
[1755287450507,3.6,4393.5,4393.1,2.29728636]
[1755287450829,0.1136,4393.6,4393.1,0.021]
[1755287451030,3.601,4393.8,4393.6,2.27602757]
[1755287451192,3.598,4393.8,4393.4,0.1136]
[1755287451893,0.4333,4393.7,4393.4,0.1136]
[1755287452214,0.48717154,4394.1,4393.1,0.021]
[1755287452520,3.0,4393.9,4393.1,0.021]
[1755287452720,3.48717154,4393.9,4393.3,2.27615471]
[1755287452932,3.48717154,4393.9,4393.2,2.27623308]
[1755287453093,3.48717154,4393.9,4393.3,2.38978808]
[1755287453293,0.48717154,4393.8,4393.1,2.29729122]
[1755287453533,0.48717154,4393.7,4393.1,2.41089122]
[1755287453735,0.4333,4393.7,4393.1,2.41089122]
[1755287453901,0.48717154,4393.8,4393.2,2.27622818]
[1755287454106,0.48717154,4393.8,4393.1,0.1346]
[1755287454107,0.48717154,4393.8,4393.3,2.27619236]
[1755287454289,3.0,4393.9,4393.1,0.1346]
[1755287454290,3.599,4393.7,4393.5,2.27605676]
[1755287454628,3.599,4393.6,4393.1,0.1346]
[1755287454927,4.0323,4393.6,4393.1,0.1346]
[1755287455124,3.599,4393.6,4393.2,2.27623141]
[1755287455532,3.599,4393.6,4393.1,0.1346]
[1755287455696,0.4333,4393.5,4393.1,0.1346]
[1755287455900,0.4333,4393.5,4393.1,0.021]
[1755287456297,0.4333,4393.4,4393.1,0.021]
[1755287456636,2.3898451,4393.2,4393.1,0.021]
[1755287456837,2.87916684,4393.2,4393.1,0.021]
[1755287457003,3.4395451,4393.2,4393.1,0.021]
[1755287457204,3.0,4393.1,4392.1,0.02]
[1755287457403,0.1136,4392.2,4392.1,0.02]
[1755287457598,3.7136,4392.2,4392.1,0.02]
[1755287458133,4.1469,4392.2,4392.1,0.02]
[1755287458299,4.7633,4392.2,4392.1,0.02]
[1755287459035,8.23963,4392.2,4392.1,0.02]